[Event "*** SCC Grand Prix: Titled Tuesday Blitz"]
[Site "Chess.com"]
[Date "2020.06.02"]
[Round "5"]
[White "Grieve72"]
[Black "anastasiyakarlovych"]
[Result "0-1"]
[WhiteElo "2342"]
[BlackElo "1949"]
[TimeControl "180+1"]
[EndTime "10:58:29 PDT"]
[Termination "anastasiyakarlovych won on time"]

1. e4 {[%clk 0:03:00.9]} 1... e5 {[%clk 0:02:59.5]} 2. Nf3 {[%clk 0:02:59.3]}
2... Nc6 {[%clk 0:02:59.1]} 3. Bc4 {[%clk 0:02:58.8]} 3... Bc5 {[%clk
0:02:57.9]} 4. O-O {[%clk 0:02:56.1]} 4... Nf6 {[%clk 0:02:57]} 5. d3 {[%clk
0:02:56.6]} 5... a6 {[%clk 0:02:54.7]} 6. a4 {[%clk 0:02:55.6]} 6... Ba7 {[%clk
0:02:54]} 7. c3 {[%clk 0:02:50.6]} 7... d6 {[%clk 0:02:51.9]} 8. Bg5 {[%clk
0:02:47.6]} 8... h6 {[%clk 0:02:51]} 9. Bh4 {[%clk 0:02:47.9]} 9... g5 {[%clk
0:02:44.1]} 10. Bg3 {[%clk 0:02:48.3]} 10... Rg8 {[%clk 0:02:29.5]} 11. Qb3
{[%clk 0:02:40]} 11... Qe7 {[%clk 0:02:27.9]} 12. Nbd2 {[%clk 0:02:37.1]} 12...
h5 {[%clk 0:02:26.8]} 13. h4 {[%clk 0:02:35.6]} 13... Nh7 {[%clk 0:01:53.4]} 14.
hxg5 {[%clk 0:02:12.6]} 14... Na5 {[%clk 0:01:49.9]} 15. Qc2 {[%clk 0:01:39]}
15... Nxg5 {[%clk 0:01:46.6]} 16. Bh4 {[%clk 0:01:36.1]} 16... Nxc4 {[%clk
0:01:29.9]} 17. dxc4 {[%clk 0:01:16.9]} 17... f6 {[%clk 0:01:22.5]} 18. Qd3
{[%clk 0:01:04.8]} 18... Qg7 {[%clk 0:01:17.1]} 19. g3 {[%clk 0:00:45.8]} 19...
Nh3+ {[%clk 0:01:04.3]} 20. Kh2 {[%clk 0:00:36.4]} 20... Nxf2 {[%clk 0:01:03.1]}
21. Qe2 {[%clk 0:00:20]} 21... Ng4+ {[%clk 0:00:46.6]} 22. Kh1 {[%clk
0:00:20.4]} 22... Ne3 {[%clk 0:00:41.5]} 23. Rfc1 {[%clk 0:00:20.7]} 23... Qg4
{[%clk 0:00:41.3]} 24. Ng1 {[%clk 0:00:13.4]} 24... Qg6 {[%clk 0:00:27.5]} 25.
Nf1 {[%clk 0:00:08.6]} 25... Bg4 {[%clk 0:00:23.1]} 26. Qd3 {[%clk 0:00:03.9]}
26... Nxf1 {[%clk 0:00:19.9]} 27. Rxf1 {[%clk 0:00:04.8]} 27... O-O-O {[%clk
0:00:19]} 28. Rxf6 {[%clk 0:00:04.7]} 28... Qg7 {[%clk 0:00:14.7]} 29. Raf1
{[%clk 0:00:05]} 29... Bxg1 {[%clk 0:00:11.1]} 30. Kxg1 {[%clk 0:00:04.3]} 30...
Bh3 {[%clk 0:00:11.3]} 31. R1f2 {[%clk 0:00:03.2]} 31... Qg4 {[%clk 0:00:08.6]}
0-1

[Event "*** SCC Grand Prix: Titled Tuesday Blitz"]
[Site "Chess.com"]
[Date "2020.06.02"]
[Round "5"]
[White "larisakalinina"]
[Black "GMJustin"]
[Result "1-0"]
[WhiteElo "1979"]
[BlackElo "2274"]
[TimeControl "180+1"]
[EndTime "10:58:30 PDT"]
[Termination "larisakalinina won on time"]

1. e4 {[%clk 0:03:00.9]} 1... e5 {[%clk 0:02:59.4]} 2. Nf3 {[%clk 0:03:01.1]}
2... Nc6 {[%clk 0:02:59.1]} 3. d4 {[%clk 0:02:59.6]} 3... exd4 {[%clk
0:02:58.2]} 4. Nxd4 {[%clk 0:03:00.1]} 4... Nxd4 {[%clk 0:02:55]} 5. Qxd4 {[%clk
0:02:58.9]} 5... Qf6 {[%clk 0:02:54.8]} 6. Qe3 {[%clk 0:02:58.1]} 6... Qb6
{[%clk 0:02:50.6]} 7. Nc3 {[%clk 0:02:57.6]} 7... Qxe3+ {[%clk 0:02:27.8]} 8.
Bxe3 {[%clk 0:02:56.9]} 8... c6 {[%clk 0:02:28.4]} 9. O-O-O {[%clk 0:02:55.4]}
9... Nf6 {[%clk 0:02:22.9]} 10. f3 {[%clk 0:02:44.3]} 10... Bb4 {[%clk
0:02:01.4]} 11. Bd4 {[%clk 0:02:42]} 11... O-O {[%clk 0:01:51.9]} 12. a3 {[%clk
0:02:38.5]} 12... Be7 {[%clk 0:01:46.9]} 13. e5 {[%clk 0:02:35.5]} 13... Ne8
{[%clk 0:01:43.8]} 14. f4 {[%clk 0:02:34.9]} 14... d5 {[%clk 0:01:33.1]} 15.
exd6 {[%clk 0:02:25.2]} 15... Nxd6 {[%clk 0:01:26.7]} 16. Bd3 {[%clk 0:02:21.7]}
16... Nf5 {[%clk 0:01:21.4]} 17. Bf2 {[%clk 0:02:14.2]} 17... Bd6 {[%clk
0:00:46.9]} 18. g3 {[%clk 0:02:10.2]} 18... Bc7 {[%clk 0:00:38.8]} 19. Rhe1
{[%clk 0:02:08.3]} 19... Be6 {[%clk 0:00:37.5]} 20. Ne4 {[%clk 0:02:00.2]} 20...
b6 {[%clk 0:00:36.9]} 21. Ng5 {[%clk 0:01:59.5]} 21... Bc8 {[%clk 0:00:32.8]}
22. Be4 {[%clk 0:01:51.6]} 22... h6 {[%clk 0:00:23]} 23. Bxc6 {[%clk 0:01:46.6]}
23... Rb8 {[%clk 0:00:20.6]} 24. Ne4 {[%clk 0:01:45.1]} 24... Be6 {[%clk
0:00:20]} 25. Bd7 {[%clk 0:01:36]} 25... Rfd8 {[%clk 0:00:12.9]} 26. Bxe6 {[%clk
0:01:35.2]} 26... fxe6 {[%clk 0:00:12.9]} 27. Nc3 {[%clk 0:01:31.2]} 27... Kf7
{[%clk 0:00:12.2]} 28. Rxd8 {[%clk 0:01:28.9]} 28... Rxd8 {[%clk 0:00:11.8]} 29.
Nb5 {[%clk 0:01:27.9]} 29... Bb8 {[%clk 0:00:11.5]} 30. Rd1 {[%clk 0:01:26.4]}
30... Rxd1+ {[%clk 0:00:10.6]} 31. Kxd1 {[%clk 0:01:26.5]} 31... a6 {[%clk
0:00:10.8]} 32. Nd4 {[%clk 0:01:25.8]} 32... b5 {[%clk 0:00:09.1]} 33. Nc6
{[%clk 0:01:24.3]} 33... Bc7 {[%clk 0:00:08.3]} 34. Ke2 {[%clk 0:01:21.2]} 34...
g5 {[%clk 0:00:08.1]} 35. g4 {[%clk 0:01:19.5]} 35... Nd6 {[%clk 0:00:06.3]} 36.
fxg5 {[%clk 0:01:17.7]} 36... hxg5 {[%clk 0:00:06.4]} 37. Bg3 {[%clk 0:01:16.3]}
37... Ne8 {[%clk 0:00:06.2]} 38. Bxc7 {[%clk 0:01:12.6]} 38... Nxc7 {[%clk
0:00:06.4]} 39. Kd3 {[%clk 0:01:11.6]} 39... Kf6 {[%clk 0:00:06]} 40. Ke4 {[%clk
0:01:10.8]} 40... Nd5 {[%clk 0:00:05.8]} 41. Nd4 {[%clk 0:00:58]} 41... Nf4
{[%clk 0:00:05.6]} 42. Nc6 {[%clk 0:00:43.9]} 42... Ne2 {[%clk 0:00:04.6]} 43.
Nb8 {[%clk 0:00:41.3]} 43... a5 {[%clk 0:00:04.2]} 44. Nc6 {[%clk 0:00:40.5]}
44... a4 {[%clk 0:00:03.7]} 45. Na7 {[%clk 0:00:38.7]} 45... Nc1 {[%clk
0:00:01.5]} 46. Nxb5 {[%clk 0:00:37.3]} 1-0

[Event "*** SCC Grand Prix: Titled Tuesday Blitz"]
[Site "Chess.com"]
[Date "2020.06.02"]
[Round "5"]
[White "kushagramohan"]
[Black "blitzking1729"]
[Result "1-0"]
[WhiteElo "2648"]
[BlackElo "2465"]
[TimeControl "180+1"]
[EndTime "10:58:31 PDT"]
[Termination "kushagramohan won on time"]

1. e4 {[%clk 0:03:00.9]} 1... d6 {[%clk 0:02:59.2]} 2. d4 {[%clk 0:03:01]} 2...
Nf6 {[%clk 0:02:58.8]} 3. Nc3 {[%clk 0:03:01.5]} 3... e5 {[%clk 0:02:59]} 4. Nf3
{[%clk 0:03:01.6]} 4... exd4 {[%clk 0:02:58.5]} 5. Nxd4 {[%clk 0:03:02.5]} 5...
Be7 {[%clk 0:02:58.7]} 6. Bf4 {[%clk 0:03:02]} 6... O-O {[%clk 0:02:58.4]} 7.
Qd2 {[%clk 0:03:02.6]} 7... Nc6 {[%clk 0:02:57.8]} 8. O-O-O {[%clk 0:03:01.5]}
8... Nxd4 {[%clk 0:02:57.2]} 9. Qxd4 {[%clk 0:03:01]} 9... Be6 {[%clk
0:02:55.7]} 10. f3 {[%clk 0:02:59.4]} 10... Nd7 {[%clk 0:02:53.5]} 11. Nd5
{[%clk 0:02:59]} 11... Bg5 {[%clk 0:02:49.8]} 12. Kb1 {[%clk 0:02:58]} 12...
Bxd5 {[%clk 0:02:47]} 13. exd5 {[%clk 0:02:58.9]} 13... Bxf4 {[%clk 0:02:45.3]}
14. Qxf4 {[%clk 0:02:59.8]} 14... Qf6 {[%clk 0:02:45.2]} 15. Qd2 {[%clk
0:02:59.4]} 15... a6 {[%clk 0:02:42.3]} 16. f4 {[%clk 0:02:56.7]} 16... Nc5
{[%clk 0:02:41.3]} 17. g3 {[%clk 0:02:47.6]} 17... Rfe8 {[%clk 0:02:16.6]} 18.
Bg2 {[%clk 0:02:38.2]} 18... Re7 {[%clk 0:02:13.1]} 19. Rhe1 {[%clk 0:02:36.4]}
19... Rae8 {[%clk 0:02:12]} 20. a3 {[%clk 0:02:34]} 20... Kf8 {[%clk 0:02:09.2]}
21. Bf3 {[%clk 0:02:30.2]} 21... Rxe1 {[%clk 0:02:05.2]} 22. Rxe1 {[%clk
0:02:30.2]} 22... Rxe1+ {[%clk 0:02:02.9]} 23. Qxe1 {[%clk 0:02:31.1]} 23... Qe7
{[%clk 0:02:02.7]} 24. Qxe7+ {[%clk 0:02:29.2]} 24... Kxe7 {[%clk 0:02:02.7]}
25. b4 {[%clk 0:02:27.3]} 25... Na4 {[%clk 0:01:43.3]} 26. c4 {[%clk 0:02:16.7]}
26... Nb6 {[%clk 0:01:38.8]} 27. Be2 {[%clk 0:02:08.5]} 27... Nd7 {[%clk
0:01:37.8]} 28. Kc2 {[%clk 0:02:08.3]} 28... Nf6 {[%clk 0:01:26.8]} 29. Kd3
{[%clk 0:02:07.5]} 29... g6 {[%clk 0:01:24.9]} 30. Kd4 {[%clk 0:02:07.5]} 30...
Ne8 {[%clk 0:01:08.1]} 31. a4 {[%clk 0:02:06.7]} 31... Ng7 {[%clk 0:00:58.9]}
32. g4 {[%clk 0:02:02.1]} 32... Ne8 {[%clk 0:00:43.5]} 33. a5 {[%clk 0:02:01]}
33... Kd7 {[%clk 0:00:40.3]} 34. c5 {[%clk 0:01:34.6]} 34... dxc5+ {[%clk
0:00:22.2]} 35. bxc5 {[%clk 0:01:34.3]} 35... c6 {[%clk 0:00:22.1]} 36. d6
{[%clk 0:01:26.6]} 36... Ng7 {[%clk 0:00:21.6]} 37. Bc4 {[%clk 0:01:23.3]} 37...
f6 {[%clk 0:00:17.9]} 38. Ke4 {[%clk 0:01:16]} 38... h5 {[%clk 0:00:09.8]} 39.
h3 {[%clk 0:01:15.6]} 39... hxg4 {[%clk 0:00:09.8]} 40. hxg4 {[%clk 0:01:16.5]}
40... Ne8 {[%clk 0:00:08.6]} 41. Bf7 {[%clk 0:01:07.7]} 41... Ng7 {[%clk
0:00:02.8]} 42. Bxg6 {[%clk 0:01:05.7]} 42... Kd8 {[%clk 0:00:03.3]} 43. Bf5
{[%clk 0:01:04.8]} 43... Ke8 {[%clk 0:00:02.8]} 44. g5 {[%clk 0:01:04.8]} 44...
fxg5 {[%clk 0:00:02.4]} 45. fxg5 {[%clk 0:01:05.7]} 45... Kd8 {[%clk 0:00:03.2]}
46. Ke5 {[%clk 0:01:05.6]} 46... Nh5 {[%clk 0:00:02.2]} 47. Bg4 {[%clk
0:01:05.6]} 47... Ng7 {[%clk 0:00:01.9]} 48. g6 {[%clk 0:01:05.3]} 48... Ne8
{[%clk 0:00:01.3]} 49. Ke6 {[%clk 0:01:03.7]} 49... Ng7+ {[%clk 0:00:01.3]} 50.
Kf7 {[%clk 0:01:03.4]} 50... Ne8 {[%clk 0:00:01.2]} 51. d7 {[%clk 0:01:01.9]}
1-0

[Event "*** SCC Grand Prix: Titled Tuesday Blitz"]
[Site "Chess.com"]
[Date "2020.06.02"]
[Round "5"]
[White "Fighter008"]
[Black "temus_galaktionov"]
[Result "0-1"]
[WhiteElo "2560"]
[BlackElo "2729"]
[TimeControl "180+1"]
[EndTime "10:58:32 PDT"]
[Termination "temus_galaktionov won on time"]

1. e4 {[%clk 0:03:00.9]} 1... c6 {[%clk 0:03:00.9]} 2. Nc3 {[%clk 0:03:00.2]}
2... g6 {[%clk 0:03:01.6]} 3. d4 {[%clk 0:02:59.1]} 3... Bg7 {[%clk 0:03:02.2]}
4. Be3 {[%clk 0:02:58.3]} 4... d6 {[%clk 0:03:02.6]} 5. Qd2 {[%clk 0:02:57.9]}
5... Nd7 {[%clk 0:03:03.1]} 6. O-O-O {[%clk 0:02:57.3]} 6... b5 {[%clk
0:03:03.6]} 7. h3 {[%clk 0:02:57.2]} 7... Ngf6 {[%clk 0:03:02.6]} 8. h4 {[%clk
0:02:58.1]} 8... b4 {[%clk 0:03:02.6]} 9. Nce2 {[%clk 0:02:54.8]} 9... Nxe4
{[%clk 0:03:03.1]} 10. Qxb4 {[%clk 0:02:52.8]} 10... Rb8 {[%clk 0:03:03.4]} 11.
Qa3 {[%clk 0:02:46.7]} 11... Qb6 {[%clk 0:02:59.5]} 12. h5 {[%clk 0:02:35]}
12... Qb7 {[%clk 0:02:37.3]} 13. Nc3 {[%clk 0:02:12.1]} 13... Nxc3 {[%clk
0:02:29.2]} 14. Qxc3 {[%clk 0:02:13]} 14... Nb6 {[%clk 0:02:29.7]} 15. b3 {[%clk
0:02:03.5]} 15... Nd5 {[%clk 0:02:26]} 16. Qa5 {[%clk 0:02:00.5]} 16... Nxe3
{[%clk 0:02:22.2]} 17. fxe3 {[%clk 0:01:59.3]} 17... Bh6 {[%clk 0:02:17.6]} 18.
Re1 {[%clk 0:01:54.4]} 18... Bg4 {[%clk 0:02:12.7]} 19. hxg6 {[%clk 0:01:51.8]}
19... hxg6 {[%clk 0:02:13.6]} 20. Kb1 {[%clk 0:01:18.1]} 20... Kd7 {[%clk
0:02:04.2]} 21. Nf3 {[%clk 0:01:13.7]} 21... Qb6 {[%clk 0:01:57]} 22. Qa4 {[%clk
0:01:03.2]} 22... a5 {[%clk 0:01:48.1]} 23. Bc4 {[%clk 0:01:02.2]} 23... Bxf3
{[%clk 0:01:03.3]} 24. gxf3 {[%clk 0:01:01]} 24... Bxe3 {[%clk 0:01:03.8]} 25.
Rxh8 {[%clk 0:00:45.9]} 25... Rxh8 {[%clk 0:01:04.7]} 26. Bxf7 {[%clk
0:00:45.9]} 26... Bxd4 {[%clk 0:01:02.1]} 27. Bxg6 {[%clk 0:00:41.2]} 27... Bf6
{[%clk 0:01:01.9]} 28. Qe4 {[%clk 0:00:20.5]} 28... Kc7 {[%clk 0:00:58.8]} 29.
Bf5 {[%clk 0:00:19.2]} 29... Qc5 {[%clk 0:00:53.9]} 30. Qd3 {[%clk 0:00:14.9]}
30... Rh5 {[%clk 0:00:47.5]} 31. Be4 {[%clk 0:00:13.3]} 31... Re5 {[%clk
0:00:45.6]} 32. Rd1 {[%clk 0:00:12.7]} 32... d5 {[%clk 0:00:45.2]} 33. Bf5
{[%clk 0:00:12.6]} 33... Re3 {[%clk 0:00:41.9]} 34. Qa6 {[%clk 0:00:12.5]} 34...
Qc3 {[%clk 0:00:32.5]} 35. Qa7+ {[%clk 0:00:05.5]} 35... Kd6 {[%clk 0:00:32.7]}
36. Qd7+ {[%clk 0:00:02.4]} 36... Ke5 {[%clk 0:00:27]} 0-1

[Event "*** SCC Grand Prix: Titled Tuesday Blitz"]
[Site "Chess.com"]
[Date "2020.06.02"]
[Round "5"]
[White "MergenKakabaev"]
[Black "stolencandy13"]
[Result "0-1"]
[WhiteElo "2393"]
[BlackElo "2562"]
[TimeControl "180+1"]
[EndTime "10:58:32 PDT"]
[Termination "stolencandy13 won on time"]

1. e4 {[%clk 0:03:00.5]} 1... c6 {[%clk 0:03:00]} 2. d4 {[%clk 0:03:00.2]} 2...
d5 {[%clk 0:03:00.9]} 3. e5 {[%clk 0:03:00.6]} 3... Bf5 {[%clk 0:02:54.8]} 4. h4
{[%clk 0:02:58.4]} 4... h5 {[%clk 0:02:53.5]} 5. Bd3 {[%clk 0:02:50.9]} 5...
Bxd3 {[%clk 0:02:51.2]} 6. Qxd3 {[%clk 0:02:49]} 6... e6 {[%clk 0:02:52.1]} 7.
Bg5 {[%clk 0:02:17]} 7... Qb6 {[%clk 0:02:50.6]} 8. Nd2 {[%clk 0:02:11.1]} 8...
Ne7 {[%clk 0:02:44.3]} 9. Ne2 {[%clk 0:02:04.7]} 9... Nf5 {[%clk 0:02:38.4]} 10.
O-O {[%clk 0:02:03.3]} 10... Qa6 {[%clk 0:02:34.7]} 11. c4 {[%clk 0:02:02]}
11... Bb4 {[%clk 0:02:32.2]} 12. b3 {[%clk 0:01:56]} 12... Nd7 {[%clk
0:02:26.9]} 13. Qc2 {[%clk 0:01:50.6]} 13... Bxd2 {[%clk 0:02:23.3]} 14. Bxd2
{[%clk 0:01:44.2]} 14... dxc4 {[%clk 0:02:19.8]} 15. bxc4 {[%clk 0:01:35.9]}
15... c5 {[%clk 0:02:20.2]} 16. d5 {[%clk 0:01:33.6]} 16... Nxe5 {[%clk
0:02:17.4]} 17. dxe6 {[%clk 0:01:31.8]} 17... Qxe6 {[%clk 0:02:08.9]} 18. Nf4
{[%clk 0:01:26.3]} 18... Nd4 {[%clk 0:02:01.8]} 19. Qe4 {[%clk 0:01:21.1]} 19...
Nef3+ {[%clk 0:01:51.5]} 20. gxf3 {[%clk 0:01:15.3]} 20... Qxe4 {[%clk
0:01:51.7]} 21. fxe4 {[%clk 0:01:13.2]} 21... Nf3+ {[%clk 0:01:52.3]} 22. Kg2
{[%clk 0:01:10.6]} 22... Nxd2 {[%clk 0:01:52.9]} 23. Rfd1 {[%clk 0:01:11.1]}
23... O-O-O {[%clk 0:01:45.4]} 24. Nd5 {[%clk 0:01:08.2]} 24... Nxe4 {[%clk
0:01:42]} 25. a4 {[%clk 0:00:54.8]} 25... Rh6 {[%clk 0:01:36.6]} 26. a5 {[%clk
0:00:49.4]} 26... Rg6+ {[%clk 0:01:30.9]} 27. Kf3 {[%clk 0:00:49.4]} 27... Re8
{[%clk 0:01:28.2]} 28. Ra3 {[%clk 0:00:39.5]} 28... Rg4 {[%clk 0:01:25]} 29. Re3
{[%clk 0:00:33.9]} 29... Rxh4 {[%clk 0:01:21.5]} 30. Kg2 {[%clk 0:00:33]} 30...
Rg4+ {[%clk 0:01:14.4]} 31. Kf1 {[%clk 0:00:26.6]} 31... Nd6 {[%clk 0:01:09.3]}
32. Ne7+ {[%clk 0:00:21]} 32... Kc7 {[%clk 0:00:57.4]} 33. Nd5+ {[%clk
0:00:15.3]} 33... Kb8 {[%clk 0:00:55.8]} 34. Rxe8+ {[%clk 0:00:08.2]} 34... Nxe8
{[%clk 0:00:56.7]} 35. Ne3 {[%clk 0:00:08.5]} 35... Rd4 {[%clk 0:00:55.8]} 36.
Rxd4 {[%clk 0:00:08.6]} 36... cxd4 {[%clk 0:00:56.7]} 37. Nf5 {[%clk 0:00:09.5]}
37... d3 {[%clk 0:00:52]} 38. Ke1 {[%clk 0:00:04]} 38... g6 {[%clk 0:00:52.5]}
39. Ne3 {[%clk 0:00:00.7]} 39... Nd6 {[%clk 0:00:52.1]} 40. Kd2 {[%clk
0:00:00.4]} 40... Ne4+ {[%clk 0:00:52.3]} 0-1

[Event "*** SCC Grand Prix: Titled Tuesday Blitz"]
[Site "Chess.com"]
[Date "2020.06.02"]
[Round "5"]
[White "GMartin_Petrov"]
[Black "Saxar85"]
[Result "0-1"]
[WhiteElo "2562"]
[BlackElo "2733"]
[TimeControl "180+1"]
[EndTime "10:58:35 PDT"]
[Termination "Saxar85 won by resignation"]

1. e4 {[%clk 0:03:00.9]} 1... g6 {[%clk 0:02:57.9]} 2. d4 {[%clk 0:03:00.4]}
2... Bg7 {[%clk 0:02:57.7]} 3. Nc3 {[%clk 0:03:00.5]} 3... d6 {[%clk 0:02:57.6]}
4. Be3 {[%clk 0:03:00.1]} 4... a6 {[%clk 0:02:56.5]} 5. h4 {[%clk 0:02:59.2]}
5... Nf6 {[%clk 0:02:56.1]} 6. f3 {[%clk 0:02:50.1]} 6... Nbd7 {[%clk
0:02:49.5]} 7. a4 {[%clk 0:02:44]} 7... b6 {[%clk 0:02:46.5]} 8. Qd2 {[%clk
0:02:42.5]} 8... Bb7 {[%clk 0:02:44.1]} 9. g4 {[%clk 0:02:38.6]} 9... h6 {[%clk
0:02:43.3]} 10. Bh3 {[%clk 0:02:29.7]} 10... e6 {[%clk 0:02:38.5]} 11. Nge2
{[%clk 0:02:27]} 11... Qe7 {[%clk 0:02:29.5]} 12. O-O-O {[%clk 0:02:18.9]} 12...
O-O-O {[%clk 0:02:27.1]} 13. Bg2 {[%clk 0:02:07.9]} 13... Kb8 {[%clk 0:02:21.3]}
14. Ng3 {[%clk 0:02:05.8]} 14... c5 {[%clk 0:02:14.3]} 15. h5 {[%clk 0:02:01.4]}
15... g5 {[%clk 0:02:11]} 16. Rhe1 {[%clk 0:01:59.9]} 16... Ne8 {[%clk
0:01:46.3]} 17. d5 {[%clk 0:01:28]} 17... Ne5 {[%clk 0:01:41.5]} 18. Qe2 {[%clk
0:01:20.6]} 18... Nc7 {[%clk 0:01:40.5]} 19. Bf1 {[%clk 0:01:18.3]} 19... Rhe8
{[%clk 0:01:35.1]} 20. Qf2 {[%clk 0:01:15.1]} 20... Qd7 {[%clk 0:01:31.5]} 21.
Kb1 {[%clk 0:01:10.8]} 21... Ka8 {[%clk 0:01:23.9]} 22. dxe6 {[%clk 0:01:08.3]}
22... fxe6 {[%clk 0:01:20.4]} 23. a5 {[%clk 0:01:08.5]} 23... Qc6 {[%clk
0:01:13.4]} 24. axb6 {[%clk 0:01:05.9]} 24... Qxb6 {[%clk 0:01:13.6]} 25. Na4
{[%clk 0:00:44.7]} 25... Qa5 {[%clk 0:01:10]} 26. b3 {[%clk 0:00:43.4]} 26...
Nb5 {[%clk 0:01:08.7]} 27. Bd2 {[%clk 0:00:37.9]} 27... Qc7 {[%clk 0:01:07]} 28.
c4 {[%clk 0:00:37.5]} 28... Nd4 {[%clk 0:01:02.3]} 29. Ka2 {[%clk 0:00:37.2]}
29... Rb8 {[%clk 0:00:59]} 30. Bc3 {[%clk 0:00:33.9]} 30... Ndxf3 {[%clk
0:00:54.5]} 31. Be2 {[%clk 0:00:28.6]} 31... Nxe1 {[%clk 0:00:51.5]} 32. Rxe1
{[%clk 0:00:26.8]} 32... Bc6 {[%clk 0:00:51.1]} 33. Nb2 {[%clk 0:00:24]} 33...
Rf8 {[%clk 0:00:45.7]} 34. Qe3 {[%clk 0:00:23.8]} 34... Rf4 {[%clk 0:00:44.4]}
35. Rd1 {[%clk 0:00:21.3]} 35... Rbf8 {[%clk 0:00:29.5]} 36. Qd2 {[%clk
0:00:20.2]} 36... Nf3 {[%clk 0:00:24.3]} 37. Qxd6 {[%clk 0:00:19.2]} 37... Qxd6
{[%clk 0:00:23.3]} 38. Rxd6 {[%clk 0:00:20.1]} 38... Bxc3 {[%clk 0:00:22.6]} 39.
Rxc6 {[%clk 0:00:20.4]} 39... Nd4 {[%clk 0:00:22.1]} 40. Rxa6+ {[%clk
0:00:18.6]} 40... Kb7 {[%clk 0:00:21.8]} 41. Rd6 {[%clk 0:00:14.8]} 41... Rf2
{[%clk 0:00:21.3]} 42. Na4 {[%clk 0:00:13]} 42... Bb4 {[%clk 0:00:21.2]} 0-1

[Event "*** SCC Grand Prix: Titled Tuesday Blitz"]
[Site "Chess.com"]
[Date "2020.06.02"]
[Round "5"]
[White "Firegrizzly"]
[Black "Terao90"]
[Result "0-1"]
[WhiteElo "2580"]
[BlackElo "2309"]
[TimeControl "180+1"]
[EndTime "10:58:36 PDT"]
[Termination "Terao90 won by resignation"]

1. d4 {[%clk 0:02:59.4]} 1... Nf6 {[%clk 0:02:58.2]} 2. Nf3 {[%clk 0:03:00.3]}
2... e6 {[%clk 0:02:56.2]} 3. Bg5 {[%clk 0:02:59.9]} 3... b6 {[%clk 0:02:55.5]}
4. e4 {[%clk 0:02:58.5]} 4... h6 {[%clk 0:02:54]} 5. Bxf6 {[%clk 0:02:58.2]}
5... Qxf6 {[%clk 0:02:54.9]} 6. Nbd2 {[%clk 0:02:58.2]} 6... Bb7 {[%clk
0:02:54.9]} 7. c3 {[%clk 0:02:57]} 7... Qd8 {[%clk 0:02:54.7]} 8. g3 {[%clk
0:02:55.9]} 8... d6 {[%clk 0:02:54.2]} 9. Bg2 {[%clk 0:02:55.9]} 9... Nd7 {[%clk
0:02:52.8]} 10. O-O {[%clk 0:02:55.9]} 10... Be7 {[%clk 0:02:52.4]} 11. Re1
{[%clk 0:02:53.7]} 11... O-O {[%clk 0:02:51.4]} 12. a4 {[%clk 0:02:53]} 12... a6
{[%clk 0:02:50.7]} 13. h4 {[%clk 0:02:51.5]} 13... c5 {[%clk 0:02:50]} 14. Nf1
{[%clk 0:02:40.7]} 14... Nf6 {[%clk 0:02:47.6]} 15. N1d2 {[%clk 0:02:31.7]}
15... Rc8 {[%clk 0:02:42.8]} 16. Qe2 {[%clk 0:02:29.1]} 16... cxd4 {[%clk
0:02:40.3]} 17. Nxd4 {[%clk 0:02:28]} 17... Qc7 {[%clk 0:02:40]} 18. g4 {[%clk
0:02:26.4]} 18... Nd7 {[%clk 0:02:36]} 19. N2f3 {[%clk 0:02:19.8]} 19... Nc5
{[%clk 0:02:32]} 20. g5 {[%clk 0:02:19.2]} 20... Nxe4 {[%clk 0:02:24.1]} 21.
gxh6 {[%clk 0:02:11.8]} 21... g6 {[%clk 0:02:23.7]} 22. h5 {[%clk 0:02:11.7]}
22... gxh5 {[%clk 0:02:19.3]} 23. Nh4 {[%clk 0:01:55.2]} 23... Bxh4 {[%clk
0:01:43]} 24. Bxe4 {[%clk 0:01:53.1]} 24... Bf6 {[%clk 0:01:36]} 25. Qxh5 {[%clk
0:01:49.3]} 25... Kh8 {[%clk 0:01:31.8]} 26. Nf3 {[%clk 0:01:36.8]} 26... Rg8+
{[%clk 0:01:27.2]} 27. Kh1 {[%clk 0:01:35.5]} 27... d5 {[%clk 0:01:18.1]} 28.
Bd3 {[%clk 0:01:27.9]} 28... d4 {[%clk 0:01:09.7]} 29. Be4 {[%clk 0:01:22.9]}
29... dxc3 {[%clk 0:01:01.7]} 30. bxc3 {[%clk 0:01:22.4]} 30... Qe7 {[%clk
0:00:39.6]} 31. Rac1 {[%clk 0:01:17.2]} 31... Rc5 {[%clk 0:00:39.1]} 32. Qh3
{[%clk 0:01:15.2]} 32... Rc4 {[%clk 0:00:32.4]} 33. Nd2 {[%clk 0:01:03.1]} 33...
Rxa4 {[%clk 0:00:27.7]} 34. Qf3 {[%clk 0:00:59.4]} 34... Bg5 {[%clk 0:00:17.1]}
35. Rg1 {[%clk 0:00:50.9]} 35... Bxd2 {[%clk 0:00:11]} 36. Rxg8+ {[%clk
0:00:50]} 36... Kxg8 {[%clk 0:00:11.8]} 37. Bxb7 {[%clk 0:00:47.2]} 37... Rh4+
{[%clk 0:00:06.9]} 38. Kg1 {[%clk 0:00:47.7]} 38... Qg5+ {[%clk 0:00:07]} 39.
Kf1 {[%clk 0:00:47.8]} 39... Bxc1 {[%clk 0:00:07.6]} 40. Bxa6 {[%clk 0:00:47.6]}
40... Rxh6 {[%clk 0:00:07.3]} 41. Bd3 {[%clk 0:00:46.5]} 41... Rf6 {[%clk
0:00:07.2]} 42. Qa8+ {[%clk 0:00:45.5]} 42... Kg7 {[%clk 0:00:07.1]} 43. Qe4
{[%clk 0:00:46.4]} 43... Qf5 {[%clk 0:00:05.6]} 44. Qg2+ {[%clk 0:00:45.7]}
44... Rg6 {[%clk 0:00:06]} 45. Bxf5 {[%clk 0:00:45.1]} 45... Rxg2 {[%clk
0:00:05.7]} 46. Kxg2 {[%clk 0:00:46]} 46... exf5 {[%clk 0:00:06.3]} 47. Kf3
{[%clk 0:00:46.7]} 47... Ba3 {[%clk 0:00:06.4]} 48. Ke2 {[%clk 0:00:47.6]} 48...
Bc5 {[%clk 0:00:06.7]} 49. Kd3 {[%clk 0:00:48.5]} 49... Kf6 {[%clk 0:00:07.1]}
50. f3 {[%clk 0:00:48]} 50... Ke5 {[%clk 0:00:07.4]} 51. Kc4 {[%clk 0:00:48.9]}
51... Kf4 {[%clk 0:00:07.2]} 52. Kd5 {[%clk 0:00:49.8]} 52... Kxf3 {[%clk
0:00:07.7]} 53. Ke5 {[%clk 0:00:50.7]} 53... f4 {[%clk 0:00:08.2]} 54. Kf5
{[%clk 0:00:51.2]} 54... Ke3 {[%clk 0:00:08.7]} 55. Kf6 {[%clk 0:00:52.1]} 55...
f3 {[%clk 0:00:09.6]} 56. Kxf7 {[%clk 0:00:53]} 56... f2 {[%clk 0:00:10.5]} 57.
Ke6 {[%clk 0:00:52.9]} 57... f1=Q {[%clk 0:00:11.4]} 0-1